fUSD/lending_fUSD_20240104
["ID","MTS","AMOUNT","RATE_DAILY","PERIOD"]
[310177494,1704390644039,-500.0,0.00032876,2]
[310177495,1704390644049,-500.0,0.00032876,2]
[310177497,1704390644058,-500.0,0.00032876,2]
[310177500,1704390644067,-1207.47,0.00032876,2]
[310177502,1704390644077,-500.0,0.00032876,2]
[310177504,1704390644086,-500.0,0.00032876,2]
[310177505,1704390644095,-634.9299887,0.00032876,2]
[310177508,1704390644105,-500.0,0.00032876,2]
[310177509,1704390644116,-936.08,0.00032876,2]
[310177511,1704390644128,-500.0,0.00032876,2]
[310177513,1704390644137,-500.0,0.00032876,2]
[310177515,1704390644146,-495.02206008,0.00032876,2]
[310177518,1704390644158,-500.0,0.00032876,2]
[310177519,1704390644167,-500.0,0.00032876,2]
[310177521,1704390644176,-627.45381295,0.00032876,2]
[310177523,1704390644185,-500.0,0.00032876,2]
[310177526,1704390644195,-500.0,0.00032876,2]
[310177528,1704390644204,-500.0,0.00032876,2]
[310177530,1704390644214,-500.0,0.00032876,2]
[310177531,1704390644223,-500.0,0.00032876,2]
[310177533,1704390644233,-500.0,0.00032876,2]
[310177535,1704390644242,-500.0,0.00032876,2]
[310177537,1704390644251,-500.0,0.00032876,2]
[310177540,1704390644261,-500.0,0.00032876,2]
[310177542,1704390644270,-500.0,0.00032876,2]
[310177549,1704390644332,-500.0,0.00032876,2]
[310177551,1704390644342,-500.0,0.00032876,2]
[310177553,1704390644354,-500.0,0.00032876,2]
[310177555,1704390644364,-2681.4,0.00032876,2]
[310177557,1704390644373,-500.0,0.00032876,2]
[310177560,1704390644383,-508.45404993,0.00032876,2]
[310177562,1704390644394,-500.0,0.00032876,2]
[310177563,1704390644404,-500.0,0.00032876,2]
[310177566,1704390644413,-500.0,0.00032876,2]
[310177568,1704390644422,-500.0,0.00032876,2]
[310177570,1704390644432,-500.0,0.00032876,2]
[310177571,1704390644441,-500.0,0.00032876,2]
[310177573,1704390644451,-500.0,0.00032876,2]
[310177575,1704390644460,-500.0,0.00032876,2]
[310177577,1704390644470,-500.0,0.00032876,2]
[310177580,1704390644479,-500.0,0.00032876,2]
[310177581,1704390644489,-1562.75,0.00032876,2]
[310177584,1704390644499,-501.39816368,0.00032876,2]
[310177585,1704390644508,-500.0,0.00032876,2]
[310177587,1704390644517,-500.0,0.00032876,2]
[310177589,1704390644527,-500.0,0.00032876,2]
[310177591,1704390644536,-500.0,0.00032876,2]
[310177593,1704390644547,-609.88,0.00032876,2]
[310177596,1704390644557,-500.0,0.00032876,2]
[310177598,1704390644566,-154.78201117,0.00032876,2]
[310177600,1704390644580,-345.21798883,0.00032876,2]
[310177602,1704390644590,-198.58079117,0.00032876,2]
[310177605,1704390644607,-418.63920883,0.00032876,2]
[310177607,1704390644616,-500.0,0.00032876,2]
[310177609,1704390644626,-672.16,0.00032876,2]
[310177611,1704390644635,-500.0,0.00032876,2]
[310177613,1704390644645,-160.44557913,0.00032876,2]
[310177615,1704390644655,-500.0,0.00032876,2]
[310177617,1704390644664,-865.18,0.00032876,2]
[310177619,1704390644674,-500.0,0.00032876,2]
[310177621,1704390644683,-500.0,0.00032876,2]
[310177623,1704390644693,-500.0,0.00032876,2]
[310177625,1704390644704,-500.0,0.00032876,2]
[310177627,1704390644713,-500.0,0.00032876,2]
[310177629,1704390644723,-715.32,0.00032876,2]
[310177631,1704390644734,-500.0,0.00032876,2]
[310177633,1704390644743,-500.0,0.00032876,2]
[310177635,1704390644752,-186.80016772,0.00032876,2]
[310177637,1704390644761,-1738.62,0.00032876,2]
[310177639,1704390644770,-500.0,0.00032876,2]
[310177641,1704390644779,-500.0,0.00032876,2]
[310177643,1704390644789,-500.0,0.00032876,2]
[310177645,1704390644798,-1254.84,0.00032876,2]
[310177647,1704390644807,-500.0,0.00032876,2]
[310177649,1704390644816,-500.0,0.00032876,2]
[310177651,1704390644825,-500.0,0.00032876,2]
[310177653,1704390644834,-942.91,0.00032876,2]
[310177654,1704390644843,-500.0,0.00032876,2]
[310177656,1704390644853,-226.10891617,0.00032876,2]
[310177658,1704390644863,-500.0,0.00032876,2]
[310177660,1704390644872,-1042.94,0.00032876,2]
[310177662,1704390644882,-500.0,0.00032876,2]
[310177664,1704390644891,-3818.52,0.00032876,2]
[310177666,1704390644901,-193.55557747,0.00032876,2]
[310177668,1704390644911,-500.0,0.00032876,2]
[310177670,1704390644920,-575.83,0.00032876,2]
[310177672,1704390644929,-665.59,0.00032876,2]
[310177674,1704390644939,-1372.69,0.00032876,2]
[310177676,1704390644948,-500.0,0.00032876,2]
[310177678,1704390644957,-500.0,0.00032876,2]
[310177681,1704390644967,-16745.67,0.00032876,2]
[310177682,1704390644976,-500.0,0.00032876,2]
[310177685,1704390644986,-500.0,0.00032876,2]
[310177686,1704390644995,-721.34,0.00032876,2]
[310177689,1704390645004,-3173.06,0.00032876,2]
[310177690,1704390645013,-500.0,0.00032876,2]
[310177693,1704390645023,-1815.37,0.00032876,2]
[310177694,1704390645032,-500.0,0.00032876,2]
[310177696,1704390645042,-500.0,0.00032876,2]
[310177699,1704390645051,-500.0,0.00032876,2]
[310177700,1704390645061,-500.0,0.00032876,2]
[310177702,1704390645070,-500.0,0.00032876,2]
[310177704,1704390645080,-2530.3,0.00032876,2]
[310177707,1704390645090,-666.11,0.00032876,2]
[310177709,1704390645100,-183.08035687,0.00032876,2]
[310177710,1704390645109,-500.0,0.00032876,2]
[310177712,1704390645119,-500.0,0.00032876,2]
[310177714,1704390645130,-500.0,0.00032876,2]
[310177716,1704390645139,-500.0,0.00032876,2]
[310177718,1704390645148,-500.0,0.00032876,2]
[310177720,1704390645157,-500.0,0.00032876,2]
[310177722,1704390645167,-1225.76,0.00032876,2]
[310177724,1704390645176,-500.0,0.00032876,2]
[310177726,1704390645185,-500.0,0.00032876,2]
[310177728,1704390645194,-1638.37,0.00032876,2]
[310177730,1704390645203,-674.49,0.00032876,2]
[310177732,1704390645213,-1957.6,0.00032876,2]
[310177734,1704390645223,-500.0,0.00032876,2]
[310177736,1704390645232,-500.0,0.00032876,2]
[310177738,1704390645241,-500.0,0.00032876,2]
[310177740,1704390645250,-500.0,0.00032876,2]
[310177742,1704390645259,-1227.69,0.00032876,2]
[310177744,1704390645268,-500.0,0.00032876,2]
[310177746,1704390645278,-500.0,0.00032876,2]
[310177748,1704390645287,-1115.6,0.00032876,2]
[310177750,1704390645297,-1502.1,0.00032876,2]
[310177752,1704390645306,-500.0,0.00032876,2]
[310177755,1704390645319,-500.0,0.00032876,2]
[310177757,1704390645329,-500.0,0.00032876,2]
[310177759,1704390645338,-601.13,0.00032876,2]
[310177761,1704390645348,-500.0,0.00032876,2]
[310177763,1704390645358,-1095.01,0.00032876,2]
[310177765,1704390645367,-500.0,0.00032876,2]
[310177767,1704390645377,-1112.32,0.00032876,2]
[310177769,1704390645387,-3635.49,0.00032876,2]
[310177771,1704390645396,-500.0,0.00032876,2]
[310177773,1704390645407,-500.0,0.00032876,2]
[310177775,1704390645415,-500.0,0.00032876,2]
[310177777,1704390645425,-500.0,0.00032876,2]
[310177779,1704390645435,-500.0,0.00032876,2]
[310177781,1704390645444,-683.22,0.00032876,2]
[310177783,1704390645454,-500.0,0.00032876,2]
[310177785,1704390645463,-908.85,0.00032876,2]
[310177787,1704390645473,-500.0,0.00032876,2]
[310177789,1704390645482,-1548.81,0.00032876,2]
[310177791,1704390645492,-4115.94,0.00032876,2]
[310177793,1704390645502,-500.0,0.00032876,2]
[310177795,1704390645511,-630.5,0.00032876,2]
[310177797,1704390645521,-500.0,0.00032876,2]
[310177799,1704390645531,-602.19,0.00032876,2]
[310177801,1704390645541,-500.0,0.00032876,2]
[310177803,1704390645551,-500.0,0.00032876,2]
[310177805,1704390645561,-500.0,0.00032876,2]
[310177807,1704390645570,-1531.01,0.00032876,2]
[310177809,1704390645580,-1981.93,0.00032876,2]
[310177811,1704390645589,-500.0,0.00032876,2]
[310177813,1704390645599,-1065.75,0.00032876,2]
[310177815,1704390645608,-587.25,0.00032876,2]
[310177817,1704390645618,-1067.69,0.00032876,2]
[310177819,1704390645629,-511.14,0.00032876,2]
[310177822,1704390645638,-500.0,0.00032876,2]
[310177824,1704390645651,-720.1,0.00032876,2]
[310177826,1704390645661,-500.0,0.00032876,2]
[310177827,1704390645670,-6881.5,0.00032876,2]
[310177829,1704390645680,-1768.26,0.00032876,2]
[310177831,1704390645690,-500.0,0.00032876,2]
[310177833,1704390645700,-500.0,0.00032876,2]
[310177835,1704390645709,-500.0,0.00032876,2]
[310177837,1704390645719,-500.0,0.00032876,2]
[310177840,1704390645729,-2064.6,0.00032876,2]
[310177842,1704390645738,-1086.35,0.00032876,2]
[310177844,1704390645748,-526.27,0.00032876,2]
[310177846,1704390645757,-1480.81,0.00032876,2]
[310177849,1704390645768,-500.0,0.00032876,2]
[310177851,1704390645777,-500.0,0.00032876,2]
[310177852,1704390645787,-500.0,0.00032876,2]
[310177853,1704390645797,-819.26,0.00032876,2]
[310177854,1704390645806,-500.0,0.00032876,2]
[310177855,1704390645817,-835.91,0.00032876,2]
[310177856,1704390645826,-532.1,0.00032876,2]
[310177857,1704390645836,-500.0,0.00032876,2]
[310177858,1704390645846,-500.0,0.00032876,2]
[310177859,1704390645856,-801.4,0.00032876,2]
[310177861,1704390645866,-621.08,0.00032876,2]
[310177863,1704390645875,-507.88,0.00032876,2]
[310177866,1704390645885,-500.0,0.00032876,2]
[310177868,1704390645895,-500.0,0.00032876,2]
[310177870,1704390645905,-500.0,0.00032876,2]
[310177872,1704390645914,-593.76,0.00032876,2]
[310177874,1704390645924,-6437.46,0.00032876,2]
[310177875,1704390645933,-500.0,0.00032876,2]
[310177877,1704390645943,-500.0,0.00032876,2]
[310177879,1704390645953,-500.0,0.00032876,2]
[310177881,1704390645962,-843.26,0.00032876,2]
[310177883,1704390645972,-500.0,0.00032876,2]
[310177885,1704390645981,-500.0,0.00032876,2]
[310177887,1704390645995,-500.0,0.00032876,2]
[310177890,1704390646004,-1704.85,0.00032876,2]
[310177892,1704390646014,-1390.54,0.00032876,2]
[310177894,1704390646023,-500.0,0.00032876,2]
[310177896,1704390646033,-500.0,0.00032876,2]
[310177897,1704390646042,-500.0,0.00032876,2]
[310177899,1704390646051,-500.0,0.00032876,2]
[310177902,1704390646063,-500.0,0.00032876,2]
[310177903,1704390646072,-589.64,0.00032876,2]
[310177905,1704390646081,-500.0,0.00032876,2]
[310177907,1704390646091,-500.0,0.00032876,2]
[310177909,1704390646100,-500.0,0.00032876,2]
[310177911,1704390646109,-500.0,0.00032876,2]
[310177913,1704390646119,-500.0,0.00032876,2]
[310177915,1704390646130,-2804.91,0.00032876,2]
[310177918,1704390646139,-500.0,0.00032876,2]
[310177920,1704390646149,-234.23384217,0.00032876,2]
[310177922,1704390646158,-500.0,0.00032876,2]
[310177924,1704390646168,-500.0,0.00032876,2]
[310177926,1704390646178,-500.0,0.00032876,2]
[310177928,1704390646187,-500.0,0.00032876,2]
[310177930,1704390646196,-1132.74,0.00032876,2]
[310177932,1704390646205,-500.0,0.00032876,2]
[310177934,1704390646214,-500.0,0.00032876,2]
[310177935,1704390646224,-1027.11,0.00032876,2]
[310177937,1704390646233,-500.0,0.00032876,2]
[310177939,1704390646243,-3550.71,0.00032876,2]
[310177942,1704390646252,-500.0,0.00032876,2]
[310177944,1704390646261,-500.0,0.00032876,2]
[310177946,1704390646270,-500.0,0.00032876,2]
[310177948,1704390646280,-500.0,0.00032876,2]
[310177950,1704390646290,-500.0,0.00032876,2]
[310177952,1704390646299,-500.0,0.00032876,2]
[310177953,1704390646308,-500.0,0.00032876,2]
[310177955,1704390646317,-500.0,0.00032876,2]
[310177957,1704390646327,-1883.66,0.00032876,2]
[310177959,1704390646336,-1301.67,0.00032876,2]
[310177962,1704390646345,-569.76,0.00032876,2]
[310177963,1704390646355,-500.0,0.00032876,2]
[310177965,1704390646364,-556.23176699,0.00032876,2]
[310177968,1704390646374,-980.49,0.00032876,2]
[310177970,1704390646383,-500.0,0.00032876,2]
[310177972,1704390646392,-500.0,0.00032876,2]
[310177973,1704390646401,-1800.67,0.00032876,2]
[310177975,1704390646411,-500.0,0.00032876,2]
[310177978,1704390646421,-1779.82,0.00032876,2]
[310177980,1704390646430,-2066.07,0.00032876,2]
[310177981,1704390646439,-500.0,0.00032876,2]
[310177983,1704390646449,-500.0,0.00032876,2]
[310177985,1704390646458,-500.0,0.00032876,2]
[310177987,1704390646468,-500.0,0.00032876,2]
[310177989,1704390646477,-500.0,0.00032876,2]
[310177991,1704390646487,-933.35,0.00032876,2]
[310177993,1704390646496,-500.0,0.00032876,2]
[310177995,1704390646506,-1036.48,0.00032876,2]
[310177998,1704390646515,-500.0,0.00032876,2]
[310177999,1704390646525,-796.42,0.00032876,2]
[310178001,1704390646535,-500.0,0.00032876,2]
[310178003,1704390646545,-500.0,0.00032876,2]
[310178005,1704390646555,-859.77,0.00032876,2]
[310178007,1704390646565,-500.0,0.00032876,2]
[310178010,1704390646574,-500.0,0.00032876,2]
[310178012,1704390646584,-500.0,0.00032876,2]
[310178014,1704390646593,-3208.71,0.00032876,2]
[310178015,1704390646603,-500.0,0.00032876,2]
[310178017,1704390646612,-500.0,0.00032876,2]
[310178020,1704390646624,-500.0,0.00032876,2]
[310178021,1704390646634,-500.0,0.00032876,2]
[310178023,1704390646643,-885.63,0.00032876,2]
[310178026,1704390646653,-500.0,0.00032876,2]
[310178028,1704390646666,-725.61,0.00032876,2]
[310178030,1704390646675,-4028.33,0.00032876,2]
[310178032,1704390646684,-500.0,0.00032876,2]
[310178034,1704390646693,-500.0,0.00032876,2]
[310178036,1704390646703,-947.57,0.00032876,2]
[310178038,1704390646713,-711.27,0.00032876,2]
[310178040,1704390646722,-645.27,0.00032876,2]
[310178042,1704390646731,-500.0,0.00032876,2]
[310178044,1704390646740,-500.0,0.00032876,2]
[310178046,1704390646749,-1162.29,0.00032876,2]
[310178048,1704390646759,-1792.09,0.00032876,2]
[310178050,1704390646768,-500.0,0.00032876,2]
[310178052,1704390646778,-500.0,0.00032876,2]
[310178054,1704390646787,-511.63199924,0.00032876,2]
[310178056,1704390646797,-500.0,0.00032876,2]
[310178058,1704390646806,-3077.15,0.00032876,2]
[310178060,1704390646816,-500.0,0.00032876,2]
[310178062,1704390646825,-500.0,0.00032876,2]
[310178064,1704390646834,-500.0,0.00032876,2]
[310178066,1704390646843,-1099.16,0.00032876,2]
[310178068,1704390646853,-500.0,0.00032876,2]
[310178070,1704390646862,-500.0,0.00032876,2]
[310178072,1704390646871,-500.0,0.00032876,2]
[310178074,1704390646881,-500.0,0.00032876,2]
[310178076,1704390646890,-500.0,0.00032876,2]
[310178078,1704390646900,-232.52,0.00032877,15]
[310178080,1704390646909,-500.0,0.00032877,2]
[310178082,1704390646918,-153.84,0.00032888,2]
[310178084,1704390646928,-5732.84563439,0.000329,2]
[310178086,1704390646938,-3900.0,0.000329,12]
[310178088,1704390646947,-150.0,0.00033,2]
[310178090,1704390646956,-222.41,0.00033003,2]
[310178092,1704390646965,-291.89917285,0.00033047,4]
[310178094,1704390646974,-1215.34920287,0.00033048,4]
[310178096,1704390646984,-155.0,0.00033048,7]
[310178098,1704390646993,-391.30956814,0.00033048,2]
[310178100,1704390647002,-333.73084503,0.00033049,4]
[310178102,1704390647011,-500.0,0.00033049,2]
[310178104,1704390647020,-500.0,0.00033049,2]
[310178106,1704390647030,-1207.47,0.00033049,2]
[310178108,1704390647039,-2681.4,0.00033049,2]
[310178110,1704390647048,-500.0,0.00033049,2]
[310178112,1704390647058,-4372.51596485,0.0003305,5]
[310178114,1704390647067,-151.6990566,0.0003305,2]
[310178116,1704390647076,-14401.8342,0.0003305,2]
[310178118,1704390647085,-586.64,0.0003305,2]
[310178120,1704390647095,-1534.17812103,0.000331,4]
[310178122,1704390647104,-500.0,0.00033149,2]
[310178124,1704390647114,-500.0,0.00033149,2]
[310178126,1704390647127,-500.0,0.00033149,2]
[310178128,1704390647136,-1207.47,0.00033149,2]
[310178130,1704390647146,-2681.4,0.00033149,2]
[310178132,1704390647155,-298.33,0.00033149,2]
[310178134,1704390647164,-500.0,0.0003315,2]
[310178136,1704390647173,-500.0,0.0003315,2]
[310178138,1704390647182,-274.6149109,0.0003315,2]
[310178140,1704390647192,-500.0,0.0003315,2]
[310178142,1704390647201,-429.79949687,0.0003315,2]
[310178144,1704390647210,-500.0,0.0003315,2]
[310178146,1704390647219,-500.0,0.0003315,2]
[310178149,1704390647229,-500.0,0.0003315,2]
[310178150,1704390647239,-500.0,0.0003315,2]
[310178152,1704390647248,-500.0,0.0003315,2]
[310178155,1704390647258,-500.0,0.0003315,2]
[310178157,1704390647267,-500.0,0.0003315,2]
[310178159,1704390647277,-500.0,0.0003315,2]
[310178161,1704390647286,-500.0,0.0003315,2]
[310178162,1704390647295,-500.0,0.0003315,2]
[310178165,1704390647305,-516.61834886,0.0003315,2]
[310178167,1704390647314,-500.0,0.0003315,2]
[310178169,1704390647323,-500.0,0.0003315,2]
[310178170,1704390647332,-500.0,0.0003315,2]
[310178173,1704390647341,-523.85314065,0.0003315,2]
[310178175,1704390647350,-500.0,0.0003315,2]
[310178177,1704390647359,-500.0,0.0003315,2]
[310178179,1704390647368,-500.0,0.0003315,2]
[310178181,1704390647378,-500.0,0.0003315,2]
[310178183,1704390647388,-558.66116934,0.0003315,2]
[310178185,1704390647397,-500.0,0.0003315,2]
[310178187,1704390647406,-500.0,0.0003315,2]
[310178189,1704390647415,-557.08627608,0.0003315,2]
[310178190,1704390647424,-500.0,0.0003315,2]
[310178192,1704390647434,-500.0,0.0003315,2]
[310178194,1704390647443,-500.0,0.0003315,2]
[310178196,1704390647452,-500.0,0.0003315,2]
[310178198,1704390647461,-500.0,0.0003315,2]
[310178200,1704390647470,-500.0,0.0003315,2]
[310178202,1704390647479,-500.0,0.0003315,2]
[310178205,1704390647488,-279.018545,0.0003315,2]
[310178207,1704390647498,-500.0,0.0003315,2]
[310178209,1704390647507,-500.0,0.0003315,2]
[310178211,1704390647516,-500.0,0.0003315,2]
[310178213,1704390647526,-500.0,0.0003315,2]
[310178215,1704390647535,-500.0,0.0003315,2]
[310178217,1704390647545,-500.0,0.0003315,2]
[310178219,1704390647554,-529.9,0.0003315,2]
[310178221,1704390647564,-500.0,0.0003315,2]
[310178222,1704390647573,-500.0,0.0003315,2]
[310178225,1704390647583,-591.73,0.0003315,2]
[310178226,1704390647592,-500.0,0.0003315,2]
[310178228,1704390647601,-500.0,0.0003315,2]
[310178230,1704390647612,-572.73096466,0.0003315,2]
[310178232,1704390647622,-506.48636178,0.0003315,2]
[310178235,1704390647632,-500.0,0.0003315,2]
[310178237,1704390647641,-500.0,0.0003315,2]
[310178239,1704390647650,-531.00264242,0.0003315,2]
[310178241,1704390647661,-500.0,0.0003315,2]
[310178243,1704390647670,-500.0,0.0003315,2]
[310178245,1704390647679,-500.0,0.0003315,2]
[310178247,1704390647689,-507.97719842,0.0003315,2]
[310178248,1704390647701,-500.0,0.0003315,2]
[310178250,1704390647711,-500.0,0.0003315,2]
[310178253,1704390647721,-510.84164958,0.0003315,2]
[310178255,1704390647731,-500.0,0.0003315,2]
[310178257,1704390647740,-500.0,0.0003315,2]
[310178259,1704390647750,-500.0,0.0003315,2]
[310178261,1704390647760,-500.0,0.0003315,2]
[310178262,1704390647769,-500.0,0.0003315,2]
[310178265,1704390647779,-500.0,0.0003315,2]
[310178266,1704390647788,-500.0,0.0003315,2]
[310178267,1704390647797,-500.0,0.0003315,2]
[310178268,1704390647806,-500.0,0.0003315,2]
[310178270,1704390647816,-502.05402029,0.0003315,2]
[310178272,1704390647825,-500.0,0.0003315,2]
[310178274,1704390647835,-500.0,0.0003315,2]
[310178276,1704390647845,-500.0,0.0003315,2]
[310178278,1704390647854,-500.0,0.0003315,2]
[310178280,1704390647864,-500.0,0.0003315,2]
[310178282,1704390647873,-627.34713227,0.0003315,2]
[310178284,1704390647883,-517.38834812,0.0003315,2]
[310178285,1704390647892,-500.0,0.0003315,2]
[310178286,1704390647902,-500.0,0.0003315,2]
[310178287,1704390647914,-500.0,0.0003315,2]
[310178288,1704390647925,-500.0,0.0003315,2]
[310178289,1704390647934,-500.0,0.0003315,2]
[310178290,1704390647944,-500.0,0.0003315,2]
[310178291,1704390647954,-500.0,0.0003315,2]
[310178292,1704390647963,-500.0,0.0003315,2]
[310178293,1704390647973,-500.0,0.0003315,2]
[310178294,1704390647982,-500.0,0.0003315,2]
[310178295,1704390647992,-500.0,0.0003315,2]
[310178296,1704390648014,-500.0,0.0003315,2]
[310178297,1704390648024,-500.0,0.0003315,2]
[310178298,1704390648034,-500.0,0.0003315,2]
[310178299,1704390648044,-500.0,0.0003315,2]
[310178300,1704390648054,-500.0,0.0003315,2]
[310178301,1704390648065,-500.0,0.0003315,2]
[310178302,1704390648075,-500.0,0.0003315,2]
[310178303,1704390648085,-500.0,0.0003315,2]
[310178304,1704390648095,-500.0,0.0003315,2]
[310178305,1704390648106,-559.05147477,0.0003315,2]
[310178306,1704390648117,-500.0,0.0003315,2]
[310178307,1704390648128,-500.0,0.0003315,2]
[310178308,1704390648138,-500.0,0.0003315,2]
[310178309,1704390648147,-500.0,0.0003315,2]
[310178310,1704390648158,-500.0,0.0003315,2]
[310178311,1704390648168,-500.0,0.0003315,2]
[310178312,1704390648178,-500.0,0.0003315,2]
[310178313,1704390648188,-500.0,0.0003315,2]
[310178314,1704390648198,-500.0,0.0003315,2]
[310178315,1704390648208,-500.0,0.0003315,2]
[310178316,1704390648218,-500.0,0.0003315,2]
[310178317,1704390648228,-500.0,0.0003315,2]
[310178318,1704390648237,-500.0,0.0003315,2]
[310178319,1704390648248,-500.0,0.0003315,2]
[310178320,1704390648258,-500.0,0.0003315,2]
[310178321,1704390648268,-500.0,0.0003315,2]
[310178322,1704390648278,-500.0,0.0003315,2]
[310178323,1704390648289,-902.69,0.0003315,2]
[310178324,1704390648299,-500.0,0.0003315,2]
[310178325,1704390648309,-500.0,0.0003315,2]
[310178326,1704390648319,-504.71981637,0.0003315,2]
[310178327,1704390648329,-500.0,0.0003315,2]
[310178328,1704390648339,-500.0,0.0003315,2]
[310178329,1704390648349,-500.0,0.0003315,2]
[310178330,1704390648359,-500.0,0.0003315,2]
[310178331,1704390648369,-500.0,0.0003315,2]
[310178332,1704390648379,-500.0,0.0003315,2]
[310178334,1704390648389,-500.0,0.0003315,2]
[310178336,1704390648399,-595.72507557,0.0003315,2]
[310178338,1704390648409,-500.0,0.0003315,2]
[310178339,1704390648418,-572.98576792,0.0003315,2]
[310178340,1704390648428,-500.0,0.0003315,2]
[310178341,1704390648438,-565.41736379,0.0003315,2]
[310178342,1704390648447,-500.0,0.0003315,2]
[310178343,1704390648457,-500.0,0.0003315,2]
[310178344,1704390648467,-500.0,0.0003315,2]
[310178345,1704390648477,-500.0,0.0003315,2]
[310178346,1704390648487,-500.0,0.0003315,2]
[310178347,1704390648496,-500.0,0.0003315,2]
[310178348,1704390648506,-500.0,0.0003315,2]
[310178350,1704390648516,-500.0,0.0003315,2]
[310178352,1704390648525,-500.0,0.0003315,2]
[310178354,1704390648535,-500.0,0.0003315,2]
[310178356,1704390648548,-500.0,0.0003315,2]
[310178358,1704390648558,-500.0,0.0003315,2]
[310178361,1704390648569,-500.0,0.0003315,2]
[310178362,1704390648578,-981.17,0.0003315,2]
[310178363,1704390648588,-500.0,0.0003315,2]
[310178364,1704390648598,-500.0,0.0003315,2]
[310178365,1704390648608,-500.0,0.0003315,2]
[310178366,1704390648618,-500.0,0.0003315,2]
[310178367,1704390648628,-500.0,0.0003315,2]
[310178368,1704390648637,-500.0,0.0003315,2]
[310178369,1704390648648,-1000.0,0.0003315,2]
[310178370,1704390648659,-500.0,0.0003315,2]
[310178371,1704390648669,-202.26491508,0.0003315,2]
[310178372,1704390648679,-500.0,0.0003315,2]
[310178373,1704390648690,-500.0,0.0003315,2]
[310178374,1704390648700,-500.0,0.0003315,2]
[310178375,1704390648709,-500.0,0.0003315,2]
[310178376,1704390648719,-500.0,0.0003315,2]
[310178377,1704390648729,-500.0,0.0003315,2]
[310178378,1704390648738,-500.0,0.0003315,2]
[310178379,1704390648748,-500.0,0.0003315,2]
[310178380,1704390648758,-500.0,0.0003315,2]
[310178381,1704390648768,-500.0,0.0003315,2]
[310178382,1704390648778,-500.0,0.0003315,2]
[310178383,1704390648788,-500.0,0.0003315,2]
[310178384,1704390648797,-287.73100927,0.0003315,2]
[310178385,1704390648807,-500.0,0.0003315,2]
[310178386,1704390648818,-500.0,0.0003315,2]
[310178387,1704390648828,-500.0,0.0003315,2]
[310178388,1704390648838,-500.0,0.0003315,2]
[310178389,1704390648847,-500.0,0.0003315,2]
[310178390,1704390648857,-500.0,0.0003315,2]
[310178391,1704390648867,-500.0,0.0003315,2]
[310178392,1704390648877,-500.0,0.0003315,2]
[310178393,1704390648887,-500.0,0.0003315,2]
[310178394,1704390648897,-500.0,0.0003315,2]
[310178395,1704390648908,-500.0,0.0003315,2]
[310178396,1704390648918,-500.0,0.0003315,2]
[310178397,1704390648929,-500.0,0.0003315,2]
[310178398,1704390648939,-500.0,0.0003315,2]